bitfinex-derivatives/quotes_BTCF0:USTF0_20241120
["timestamp","ask_amount","ask_price","bid_price","bid_amount"]
[1732116622103,0.01412655,94667.0,94666.0,0.10585109]
[1732116622314,0.03672766,94667.0,94659.0,0.3608]
[1732116622506,0.052759,94661.0,94659.0,0.3608]
[1732116622711,0.03654965,94660.0,94659.0,0.3608]
[1732116623411,1.53654965,94660.0,94659.0,0.3608]
[1732116623910,1.53655277,94660.0,94659.0,0.3608]
[1732116624112,1.53655277,94660.0,94659.0,0.41356]
[1732116624702,1.53655277,94660.0,94659.0,0.3608]
[1732116625510,1.54314818,94660.0,94659.0,0.3608]
[1732116626402,1.54314818,94660.0,94648.0,0.3608]
[1732116626604,0.052766,94649.0,94648.0,0.3608]
[1732116626808,0.08931877,94649.0,94648.0,0.3608]
[1732116627007,0.03800257,94649.0,94648.0,0.3608]
[1732116627206,0.03800257,94649.0,94648.0,0.413566]
[1732116628724,0.01631977,94671.0,94648.0,0.730526]
[1732116629022,0.052754,94669.0,94657.0,0.052761]
[1732116629213,1.50659505,94668.0,94656.0,0.3608]
[1732116629414,0.052757,94664.0,94656.0,0.3608]
[1732116629615,1.5,94668.0,94656.0,0.3608]
[1732116629616,0.00659505,94663.0,94656.0,0.3608]
[1732116629818,0.052761,94657.0,94656.0,0.3608]
[1732116630021,0.05935605,94657.0,94656.0,0.3608]
[1732116630214,1.5,94657.0,94648.0,0.3608]
[1732116630415,0.052766,94649.0,94648.0,0.3608]
[1732116630621,0.00659563,94649.0,94648.0,0.3608]
[1732116631015,0.052766,94648.0,94637.0,0.00124]
[1732116631223,0.052772,94638.0,94635.0,8.438e-05]
[1732116631517,0.052766,94649.0,94635.0,8.438e-05]
[1732116631518,0.052773,94636.0,94635.0,8.438e-05]
[1732116631728,0.05937025,94636.0,94635.0,8.438e-05]
[1732116631921,0.052773,94636.0,94635.0,8.438e-05]
[1732116632121,0.41357,94642.0,94635.0,8.438e-05]
[1732116632320,0.00659718,94641.0,94635.0,8.438e-05]
[1732116632815,0.3608,94642.0,94635.0,8.438e-05]
[1732116632816,0.052773,94636.0,94635.0,8.438e-05]
[1732116633015,0.05937018,94636.0,94635.0,8.438e-05]
[1732116633217,0.052781,94622.0,94621.0,0.00044]
[1732116633418,1.913581,94622.0,94621.0,0.00044]
[1732116633620,1.8673986,94622.0,94603.0,0.35374]
[1732116633820,0.3608,94613.0,94592.0,0.36204]
[1732116634019,0.3608,94613.0,94592.0,0.3608]
[1732116634223,0.052789,94607.0,94598.0,0.052794]
[1732116634419,0.052789,94607.0,94592.0,0.3608]
[1732116634420,8.438e-05,94612.0,94592.0,0.3608]
[1732116634625,0.052795,94596.0,94592.0,0.3608]
[1732116634823,0.413597,94593.0,94586.0,0.052801]
[1732116635023,0.413597,94593.0,94584.0,0.00010718]
[1732116635217,0.3608,94593.0,94584.0,0.00010718]
[1732116635524,0.3608,94590.0,94589.0,0.052799]
[1732116635727,0.3608,94590.0,94584.0,0.00010718]
[1732116636131,0.052801,94586.0,94584.0,0.00010718]
[1732116636433,0.3608,94590.0,94584.0,0.00010718]
[1732116636819,0.3608,94590.0,94588.0,0.052799]
[1732116637025,0.00060001,94597.0,94584.0,0.00010718]
[1732116637218,0.00060001,94597.0,94596.0,0.052795]
[1732116637424,0.3608,94619.0,94594.0,0.3608]
[1732116637625,0.0049,94632.0,94610.0,0.052787]
[1732116637816,0.0389,94633.0,94610.0,0.052787]
[1732116637817,0.05325792,94623.0,94610.0,0.052787]
[1732116638133,0.4134195,94637.0,94611.0,0.3608]
[1732116638321,0.3608,94628.0,94611.0,0.3608]
[1732116638630,0.052774,94634.0,94611.0,0.67788]
[1732116638819,0.05277,94641.0,94611.0,0.97788]
[1732116639022,0.02151435,94639.0,94630.0,0.3608]
[1732116639214,0.02151435,94638.0,94630.0,0.3608]
[1732116639433,0.3608,94647.0,94633.0,0.052774]
[1732116639622,0.41378235,94647.0,94630.0,0.3608]
[1732116639825,0.02176022,94646.0,94630.0,0.54413996]
[1732116640023,0.26073996,94665.0,94639.0,0.18333996]
[1732116640024,0.3608,94653.0,94639.0,0.18333996]
[1732116640224,0.02184742,94652.0,94639.0,0.18333996]
[1732116640430,0.05311433,94656.0,94640.0,0.05277]
[1732116640627,0.0218134,94655.0,94639.0,0.18333996]
[1732116640816,0.3608,94662.0,94648.0,0.052766]
[1732116640817,0.01359425,94654.0,94648.0,0.052766]
[1732116641023,0.01359425,94654.0,94644.0,0.052768]
[1732116641024,0.01359425,94653.0,94644.0,0.052768]
[1732116641217,0.06635725,94653.0,94639.0,0.23581022]
[1732116641427,0.01359425,94652.0,94639.0,0.23581022]
[1732116641626,0.01359425,94652.0,94640.0,0.05277]
[1732116641927,0.01359425,94652.0,94639.0,0.23581022]
[1732116642120,0.01359425,94652.0,94642.0,0.052769]
[1732116642318,0.01359425,94652.0,94639.0,0.23581022]
[1732116642319,0.01359425,94652.0,94643.0,0.052768]
[1732116642519,0.01359425,94651.0,94643.0,0.052768]
[1732116642723,0.01359425,94651.0,94639.0,0.05247026]
[1732116642724,0.01359425,94650.0,94639.0,0.05247026]
[1732116642934,0.3608,94656.0,94649.0,0.052766]
[1732116643122,0.01381448,94655.0,94649.0,0.052766]
[1732116643322,0.00121335,94653.0,94643.0,0.052769]
[1732116643520,0.01381448,94652.0,94645.0,0.052767]
[1732116643722,0.01381448,94651.0,94645.0,0.052767]
[1732116644032,0.01381448,94650.0,94638.0,0.4153655]
[1732116644235,0.00121335,94644.0,94638.0,0.4141255]
[1732116644539,0.00121335,94644.0,94630.0,0.36204]
[1732116644540,0.01370679,94643.0,94630.0,0.36204]
[1732116644724,0.00121335,94644.0,94630.0,0.36204]
[1732116644725,0.052775,94632.0,94630.0,0.3608]
[1732116645336,0.00121335,94631.0,94630.0,0.3608]
[1732116645633,0.36201335,94631.0,94623.0,0.05206001]
[1732116645940,0.36201335,94631.0,94621.0,0.052781]
[1732116646139,0.36201335,94631.0,94619.0,0.3608]
[1732116646433,0.00121335,94625.0,94619.0,0.3608]
[1732116646934,0.05278,94624.0,94619.0,0.3608]
[1732116647326,0.00121335,94622.0,94619.0,0.3608]
[1732116647934,0.26583996,94655.0,94620.0,0.18333996]
[1732116648235,0.3608,94648.0,94638.0,0.052771]
[1732116648426,0.052771,94640.0,94633.0,0.3608]
[1732116648628,1.68389997,94647.0,94633.0,0.3158]
[1732116648829,0.052768,94644.0,94634.0,0.052774]
[1732116649130,0.052769,94643.0,94633.0,0.3158]
[1732116649334,0.3608,94646.0,94633.0,0.3158]
[1732116649537,0.01362737,94645.0,94633.0,0.3158]
[1732116649736,0.3608,94649.0,94633.0,0.3695906]
[1732116650129,0.01364751,94648.0,94633.0,0.3695906]
[1732116650427,0.052768,94645.0,94633.0,0.3695906]
[1732116650640,0.01364751,94644.0,94639.0,0.00266611]
[1732116650835,0.01364751,94643.0,94639.0,0.00266611]
[1732116651036,0.01364751,94642.0,94639.0,0.00266611]
[1732116651229,0.01364751,94641.0,94639.0,0.00266611]
[1732116651429,0.052771,94640.0,94639.0,0.00266611]
[1732116651631,0.06635033,94640.0,94639.0,0.00266611]
[1732116652047,0.24969029,94640.0,94639.0,0.00266611]
[1732116652930,0.23611096,94640.0,94639.0,0.00266611]
[1732116653137,0.01361446,94640.0,94639.0,0.00266611]
[1732116653332,0.01361446,94640.0,94639.0,0.05543711]
[1732116653540,0.052762,94655.0,94639.0,0.05504076]
[1732116653829,0.18333996,94659.0,94647.0,0.00266611]
[1732116653830,0.052765,94651.0,94647.0,0.00266611]
[1732116654037,0.052766,94649.0,94647.0,0.00266611]
[1732116654443,0.06661213,94648.0,94647.0,0.00266611]
[1732116654941,0.052766,94648.0,94647.0,0.00266611]
[1732116656446,0.06662672,94648.0,94647.0,0.00266611]
[1732116656944,0.01386072,94648.0,94647.0,0.00266611]
[1732116657129,0.06662672,94648.0,94647.0,0.00266611]
[1732116657548,0.0138293,94648.0,94647.0,0.00266611]
[1732116657937,0.3608,94661.0,94647.0,0.00266611]
[1732116658135,0.01388126,94660.0,94656.0,0.3608]
[1732116658346,0.01407922,94659.0,94656.0,0.3608]
[1732116658552,0.052758,94662.0,94656.0,0.3608]
[1732116658852,0.05009489,94657.0,94656.0,0.3608]
[1732116659042,0.052758,94662.0,94656.0,0.3608]
[1732116659348,0.05276,94659.0,94656.0,0.3608]
[1732116659747,0.09135857,94665.0,94656.0,0.3608]
[1732116659944,0.01403047,94664.0,94656.0,0.3608]
[1732116660147,0.09135857,94665.0,94656.0,0.3608]
[1732116660148,0.052761,94657.0,94656.0,0.3608]
[1732116660340,0.37483047,94657.0,94641.0,0.3608]
[1732116660646,0.18333996,94652.0,94641.0,0.3608]
[1732116660948,0.01403047,94651.0,94641.0,0.3608]
[1732116661135,0.01403047,94650.0,94641.0,0.3608]
[1732116661341,0.052769,94643.0,94641.0,0.3608]
[1732116661537,0.18333996,94652.0,94641.0,0.3608]
[1732116661758,0.052767,94647.0,94641.0,0.3608]
[1732116662136,0.052764,94652.0,94641.0,0.3608]
[1732116662451,0.285869,94679.0,94651.0,0.3608]
[1732116662643,0.052756,94666.0,94660.0,0.3608]
[1732116662952,0.052749,94679.0,94660.0,0.3608]
[1732116662953,0.052758,94663.0,94660.0,0.3608]
[1732116663143,0.01422315,94662.0,94660.0,0.3608]
[1732116663340,0.05181359,94676.0,94660.0,0.3608]
[1732116663652,0.03709608,94675.0,94660.0,0.3608]
[1732116663838,0.18333996,94682.0,94660.0,0.3608]
[1732116663839,0.01426594,94674.0,94660.0,0.3608]
[1732116664038,0.01426594,94673.0,94660.0,0.3608]
[1732116664234,0.052759,94661.0,94660.0,0.3608]
[1732116664653,0.18333996,94674.0,94660.0,0.3608]
[1732116664850,0.052759,94661.0,94660.0,0.3608]
[1732116665442,0.06706551,94661.0,94660.0,0.3608]
[1732116665639,0.01430651,94661.0,94660.0,0.3608]
[1732116665843,0.06706551,94661.0,94660.0,0.3608]
[1732116666350,0.01430651,94661.0,94660.0,0.3608]
[1732116666548,0.01430651,94661.0,94660.0,0.413559]
[1732116666746,0.3608,94677.0,94660.0,0.3608]
[1732116666951,0.01461431,94676.0,94670.0,0.3608]
[1732116667142,0.052753,94673.0,94670.0,0.3608]
[1732116667343,0.052753,94671.0,94670.0,0.3608]
[1732116667544,0.06736731,94671.0,94670.0,0.3608]
[1732116667851,0.01461431,94671.0,94670.0,0.3608]
[1732116668152,0.06736731,94671.0,94670.0,0.3608]
[1732116668453,0.01451853,94671.0,94670.0,0.3608]
[1732116668848,0.052751,94675.0,94670.0,0.3608]
[1732116669055,0.01457482,94674.0,94670.0,0.3608]
[1732116669268,0.01457482,94673.0,94670.0,0.3608]
[1732116669558,0.01457482,94672.0,94670.0,0.413554]
[1732116669742,0.01457482,94671.0,94670.0,0.413554]
[1732116670059,0.01457482,94671.0,94670.0,0.3608]
[1732116670256,0.01457482,94671.0,94670.0,0.36226611]
[1732116670557,0.052747,94683.0,94670.0,0.41502011]
[1732116670757,0.01444182,94682.0,94670.0,0.36226611]
[1732116670957,0.052749,94678.0,94670.0,0.36226611]
[1732116671257,0.052749,94678.0,94674.0,0.00146611]
[1732116671555,0.18333996,94685.0,94674.0,0.00146611]
[1732116671756,0.052747,94682.0,94674.0,0.00146611]
[1732116671956,0.01453177,94681.0,94674.0,0.00146611]
[1732116672257,0.052747,94682.0,94674.0,0.052751]
[1732116672457,0.052747,94682.0,94670.0,0.3608]
[1732116672458,0.01453045,94681.0,94677.0,0.00146611]
[1732116672655,0.01453045,94680.0,94677.0,0.00146611]
[1732116672860,0.01598014,94679.0,94677.0,0.00146611]
[1732116673049,0.01200969,94679.0,94678.0,0.413549]
[1732116673248,0.18333996,94711.0,94678.0,0.451449]
[1732116673449,0.15339939,94700.0,94699.0,0.3608]
[1732116673657,0.16811819,94700.0,94699.0,0.3608]
[1732116674450,0.1917026,94700.0,94699.0,0.36226611]
[1732116674851,0.1147188,94700.0,94699.0,0.36226611]
[1732116675361,0.1,94700.0,94699.0,0.41500411]
[1732116675756,0.1,94700.0,94699.0,0.36226611]
[1732116675962,0.11492603,94700.0,94699.0,0.36226611]
[1732116676781,0.16766303,94700.0,94699.0,0.36226611]
[1732116677556,0.19167626,94700.0,94699.0,0.36226611]
[1732116678360,0.13893926,94700.0,94699.0,0.36226611]
[1732116678561,0.13893926,94700.0,94699.0,0.31726611]
[1732116678856,0.1,94700.0,94699.0,0.31726611]
[1732116679168,0.1388546,94700.0,94699.0,0.31726611]
[1732116679461,0.16768136,94700.0,94699.0,0.31726611]
[1732116679660,0.19152988,94700.0,94699.0,0.31726611]
[1732116680260,0.13879288,94700.0,94699.0,0.31726611]
[1732116680660,0.19152988,94700.0,94699.0,0.31726611]
[1732116680868,0.50832988,94700.0,94699.0,0.00146611]
[1732116681061,0.68671288,94700.0,94678.0,0.3608]
[1732116681255,0.052749,94679.0,94678.0,0.3608]
[1732116681462,0.01478049,94679.0,94678.0,0.3608]
[1732116681655,0.052747,94683.0,94678.0,0.3608]
[1732116681965,0.33112,94700.0,94683.0,0.052746]
[1732116682265,0.3608,94692.0,94678.0,0.3608]
[1732116682468,0.052745,94686.0,94678.0,0.3608]
[1732116682763,0.052742,94691.0,94678.0,0.3608]
[1732116682950,0.052744,94688.0,94678.0,0.3608]
[1732116683155,0.052746,94685.0,94678.0,0.3608]
[1732116683355,0.3608,94694.0,94678.0,0.3608]
[1732116683356,0.052749,94679.0,94678.0,0.3608]
[1732116683555,0.06747843,94679.0,94678.0,0.3608]
[1732116683756,0.06733322,94679.0,94678.0,0.3608]
[1732116684454,0.01458422,94679.0,94678.0,0.3608]
[1732116684650,0.01458422,94679.0,94678.0,0.54413996]
[1732116684864,0.00844,94699.0,94678.0,0.86101996]
[1732116685065,0.00844,94699.0,94698.0,0.052738]
[1732116685359,0.03232713,94699.0,94698.0,0.052738]
[1732116686265,0.04076713,94699.0,94698.0,0.052738]
[1732116686468,0.04076713,94699.0,94696.0,0.3608]
[1732116686654,0.02388713,94698.0,94696.0,0.3608]
[1732116686855,0.07662613,94697.0,94696.0,0.3608]
[1732116687055,0.38468713,94697.0,94691.0,0.05299585]
[1732116687250,0.38468713,94697.0,94681.0,0.094747]
[1732116687251,0.03048009,94696.0,94681.0,0.094747]
[1732116687452,0.3608,94691.0,94681.0,0.042]
[1732116687755,0.03048055,94690.0,94671.0,0.0401]
[1732116687954,0.052749,94679.0,94671.0,0.0401]
[1732116688155,0.07663613,94679.0,94664.0,0.18333996]
[1732116688369,0.03048144,94679.0,94662.0,0.05329121]
[1732116688555,0.3608,94671.0,94663.0,0.052757]
[1732116688858,0.02321814,94670.0,94663.0,0.052757]
[1732116689054,0.02321814,94669.0,94666.0,0.052756]
[1732116689363,0.02316646,94668.0,94666.0,0.052756]
[1732116689551,0.02316646,94667.0,94666.0,0.052756]
[1732116690160,0.01056,94678.0,94666.0,0.67772]
[1732116690464,0.0234384,94677.0,94676.0,0.05275]
[1732116690667,0.01056,94678.0,94676.0,0.041]
[1732116690859,0.01056,94678.0,94677.0,0.05275]
[1732116692355,0.01056,94678.0,94677.0,0.36963]
[1732116693470,0.01688,94699.0,94692.0,0.052741]
[1732116693665,0.01688,94699.0,94679.0,0.052748]
[1732116693666,0.03057174,94698.0,94696.0,0.3158]
[1732116693868,0.03057174,94697.0,94696.0,0.3158]
[1732116694065,0.03057174,94697.0,94696.0,0.368539]
[1732116695368,0.0239794,94697.0,94696.0,0.368539]
[1732116696862,0.03883744,94697.0,94696.0,0.368539]
[1732116697262,0.01485804,94697.0,94696.0,0.3158]
[1732116697465,0.03878249,94697.0,94696.0,0.3158]
[1732116697975,0.09152149,94697.0,94696.0,0.3158]
[1732116698167,0.03878249,94697.0,94673.0,0.18333996]
[1732116698471,0.03878249,94696.0,94673.0,0.18333996]
[1732116698666,0.01688,94699.0,94673.0,0.18333996]
[1732116698667,0.03878249,94695.0,94685.0,0.052745]
[1732116698865,0.03848435,94694.0,94691.0,0.3608]
[1732116699071,0.052742,94692.0,94691.0,0.3608]
[1732116699289,0.01480167,94692.0,94691.0,0.3608]
[1732116699668,0.03853524,94692.0,94691.0,0.3608]
[1732116701063,0.03853524,94692.0,94691.0,0.413542]
[1732116701463,0.01480167,94692.0,94691.0,0.3608]
[1732116701673,0.01056,94693.0,94691.0,0.3608]
[1732116701877,0.01481498,94692.0,94691.0,0.3608]
[1732116702070,0.01481498,94692.0,94691.0,0.413542]
[1732116703774,0.01056,94693.0,94692.0,0.052742]
[1732116705175,0.02521014,94693.0,94692.0,0.052742]
[1732116706786,0.01056,94693.0,94692.0,0.052742]
[1732116708273,0.01056,94693.0,94692.0,0.10499232]
[1732116708678,0.01056,94693.0,94692.0,0.05225032]
[1732116708879,0.01056,94693.0,94692.0,0.17253311]
[1732116710177,0.02509872,94693.0,94692.0,0.17253311]
[1732116710478,0.01056,94693.0,94692.0,0.17253311]
[1732116710684,0.01056,94693.0,94692.0,0.052742]
[1732116710976,0.01056,94693.0,94691.0,0.4143053]
[1732116711969,0.01056,94693.0,94692.0,0.17253311]
[1732116714482,0.01056,94693.0,94691.0,0.4155453]
[1732116714689,0.019,94693.0,94692.0,0.052742]
[1732116716183,0.05294171,94712.0,94692.0,0.052742]
[1732116716387,0.05294171,94712.0,94699.0,0.53332911]
[1732116716577,0.079,94728.0,94699.0,0.48059111]
[1732116716782,0.052727,94718.0,94707.0,0.3608]
[1732116716977,0.05169726,94722.0,94717.0,0.3608]
[1732116717178,0.11979111,94727.0,94717.0,0.3608]
[1732116717377,0.17307312,94727.0,94717.0,0.3608]
[1732116717573,0.12035112,94727.0,94717.0,0.3608]
[1732116717783,0.052724,94724.0,94717.0,0.3608]
[1732116717981,0.052726,94721.0,94707.0,0.00124]
[1732116718189,0.052732,94709.0,94698.0,0.3608]
[1732116718383,0.3608,94712.0,94698.0,0.3608]
[1732116718690,0.052733,94709.0,94698.0,0.3608]
[1732116718890,0.052735,94704.0,94698.0,0.3608]
[1732116719088,0.3608,94712.0,94698.0,0.3608]
[1732116719593,0.052731,94711.0,94698.0,0.413538]
[1732116720186,0.48059111,94715.0,94698.0,0.413538]
[1732116720187,0.11979111,94708.0,94699.0,0.35395247]
[1732116720396,0.091333,94707.0,94698.0,0.3608]
[1732116720605,0.0386,94707.0,94698.0,0.3608]
[1732116720791,0.0386,94707.0,94699.0,0.35901825]
[1732116721094,0.41454849,94715.0,94698.0,0.3608]
[1732116721289,0.0143473,94714.0,94698.0,0.3608]
[1732116721487,0.41454849,94715.0,94699.0,0.35852348]
[1732116721688,0.41454849,94715.0,94705.0,0.052734]
[1732116721888,0.01435683,94714.0,94705.0,0.052734]
[1732116722090,0.05374849,94715.0,94699.0,0.35737073]
[1732116722282,0.11979111,94716.0,94698.0,0.3608]
[1732116722483,0.00844,94714.0,94704.0,0.052734]
[1732116722792,0.01433541,94713.0,94705.0,0.35796698]
[1732116722980,0.00844,94714.0,94706.0,0.35796698]
[1732116723178,0.00844,94714.0,94708.0,0.052732]
[1732116723380,0.00844,94714.0,94698.0,0.41365326]
[1732116723580,0.00844,94714.0,94699.0,0.3123034]
[1732116723784,0.00844,94714.0,94700.0,0.3123034]
[1732116723989,0.11979111,94709.0,94698.0,0.36204]
[1732116724191,1.61979111,94709.0,94698.0,0.3608]
[1732116724493,1.5,94709.0,94698.0,0.3608]
[1732116724697,1.5,94709.0,94699.0,0.052738]
[1732116724879,0.01451002,94708.0,94702.0,0.052736]
[1732116725082,0.01451002,94707.0,94706.0,0.052734]
[1732116725282,0.01451002,94707.0,94698.0,0.3608]
[1732116725283,0.01451925,94708.0,94707.0,0.052733]
[1732116725496,0.01451925,94708.0,94698.0,0.3608]
[1732116725497,1.5,94713.0,94698.0,0.3608]
[1732116725685,0.01453278,94712.0,94710.0,0.052731]
[1732116725884,0.01453278,94711.0,94710.0,0.052731]
[1732116726081,0.01453278,94713.0,94698.0,0.3608]
[1732116726288,0.00844,94714.0,94698.0,0.413538]
[1732116726597,0.00844,94712.0,94711.0,0.05273]
[1732116726791,0.02300086,94712.0,94711.0,0.05273]
[1732116726980,1e-08,94714.0,94713.0,0.05273]
[1732116728192,1e-08,94714.0,94708.0,0.052733]
[1732116728393,0.11979111,94711.0,94707.0,0.3608]
[1732116729287,1e-08,94714.0,94713.0,0.05273]
[1732116730188,1e-08,94714.0,94713.0,0.17252111]
[1732116731395,0.11979111,94747.0,94713.0,0.11979111]
[1732116731594,0.0396,94745.0,94736.0,0.3608]
[1732116731793,1.51499342,94744.0,94739.0,0.052715]
[1732116732004,0.11979111,94741.0,94730.0,0.0403]
[1732116732291,1.5,94744.0,94730.0,0.0403]
[1732116732292,0.01499342,94740.0,94739.0,0.052715]
[1732116732493,0.01499342,94740.0,94736.0,0.3608]
[1732116732692,0.01542631,94739.0,94736.0,0.413517]
[1732116732896,0.01542631,94738.0,94736.0,0.3608]
[1732116733086,0.01542631,94737.0,94736.0,0.413517]
[1732116733286,0.01542631,94737.0,94736.0,0.3608]
[1732116734103,0.01542631,94737.0,94726.0,0.05190266]
[1732116734284,0.00844,94738.0,94727.0,0.04]
[1732116734489,0.00844,94738.0,94737.0,0.052716]
[1732116734689,0.02380568,94738.0,94737.0,0.052716]
[1732116734992,0.02380568,94738.0,94727.0,0.04]
[1732116735192,0.01536568,94737.0,94727.0,0.04]
[1732116735487,0.00844,94738.0,94727.0,0.04]
[1732116735488,0.00844,94738.0,94736.0,0.3608]
[1732116735684,0.00844,94738.0,94737.0,0.052716]
[1732116735889,0.00844,94738.0,94726.0,0.0421]
[1732116735890,0.02378948,94738.0,94705.0,0.052734]
[1732116736093,0.02378948,94738.0,94690.0,0.052742]
[1732116736094,0.052734,94707.0,94690.0,0.052742]
[1732116736295,0.052734,94707.0,94672.0,0.0398]
[1732116736296,0.3608,94693.0,94688.0,0.0413]
[1732116736490,0.36029,94693.0,94690.0,0.11979111]
[1732116737090,0.00844,94692.0,94689.0,0.0409]
[1732116737898,0.00844,94692.0,94691.0,0.052742]
[1732116738293,0.00844,94692.0,94691.0,0.369542]
[1732116738499,0.00844,94692.0,94691.0,0.324542]
[1732116738700,0.00844,94692.0,94691.0,0.3168]
[1732116739208,0.00844,94692.0,94691.0,0.369542]
[1732116739698,0.3608,94701.0,94695.0,0.052739]
[1732116740000,0.3608,94701.0,94696.0,0.0394]
[1732116740702,0.3608,94697.0,94696.0,0.0394]
[1732116741100,0.3608,94697.0,94689.0,0.09415182]
[1732116741101,0.052739,94696.0,94689.0,0.09415182]
[1732116741315,0.052742,94691.0,94689.0,0.0409]
[1732116741499,0.3608,94690.0,94689.0,0.09235463]
[1732116741695,0.3608,94690.0,94687.0,8.791e-05]
[1732116741899,0.05285911,94689.0,94687.0,8.791e-05]
[1732116743210,0.00011611,94689.0,94687.0,8.791e-05]
[1732116743711,0.05286011,94689.0,94687.0,8.791e-05]
[1732116745503,0.00011611,94689.0,94687.0,8.791e-05]
[1732116745691,0.00011611,94689.0,94687.0,0.05193211]
[1732116745898,0.00011611,94689.0,94688.0,0.0383]
[1732116746608,0.00011611,94689.0,94688.0,0.0795]
[1732116746911,0.00011611,94689.0,94688.0,0.08082802]
[1732116748602,0.00011611,94689.0,94688.0,0.00132802]
[1732116751902,0.05285911,94689.0,94688.0,0.00132802]
[1732116752601,0.00011611,94689.0,94688.0,0.00132802]
[1732116753007,0.05285911,94689.0,94688.0,0.00132802]
[1732116753404,0.06129911,94689.0,94688.0,0.00132802]
[1732116753605,0.06129911,94689.0,94669.0,0.0774]
[1732116753606,0.052744,94687.0,94669.0,0.0774]
[1732116753807,0.3608,94674.0,94671.0,0.052753]
[1732116754405,0.3608,94674.0,94669.0,0.0774]
[1732116754905,0.3608,94674.0,94669.0,0.130154]
[1732116755110,0.3608,94674.0,94669.0,0.18264311]
[1732116755500,0.3608,94674.0,94669.0,0.12988911]
[1732116755696,0.3608,94674.0,94673.0,0.052752]
[1732116755897,0.00844,94686.0,94670.0,0.31688]
[1732116756100,0.00844,94686.0,94673.0,0.052752]
[1732116756318,0.3608,94674.0,94673.0,0.052752]
[1732116756813,0.3608,94674.0,94672.0,0.11979111]
[1732116757008,0.3608,94674.0,94673.0,0.052752]
[1732116757697,0.3608,94674.0,94669.0,0.12988911]
[1732116757698,0.3608,94681.0,94680.0,0.052748]
[1732116757904,0.00844,94686.0,94680.0,0.052748]
[1732116757905,0.00844,94686.0,94680.0,0.17253911]
[1732116758105,0.3608,94681.0,94680.0,0.052748]
[1732116758304,0.00844,94686.0,94680.0,0.052748]
[1732116758506,0.00844,94686.0,94673.0,0.11979111]
[1732116759411,0.00844,94686.0,94684.0,0.052746]
[1732116759713,0.00844,94686.0,94685.0,0.052745]
[1732116764517,0.00844,94686.0,94685.0,0.10420277]
[1732116765709,0.00844,94686.0,94685.0,0.42104277]
[1732116766413,0.00844,94686.0,94685.0,0.10420277]
[1732116768103,0.00011611,94689.0,94688.0,0.052744]
[1732116768309,0.3608,94701.0,94700.0,0.052737]
[1732116768508,0.3608,94701.0,94700.0,0.12752811]
[1732116768703,0.3608,94701.0,94700.0,0.11979111]
[1732116768904,0.3608,94718.0,94709.0,0.052732]
[1732116769111,0.3608,94710.0,94703.0,0.052735]
[1732116769313,0.00010328,94709.0,94700.0,0.11979111]
[1732116769616,0.3608,94702.0,94701.0,0.052737]
[1732116769820,0.3608,94702.0,94700.0,0.11979111]
[1732116770120,0.3608,94702.0,94701.0,0.052737]
[1732116770319,0.3608,94702.0,94700.0,0.11979111]
[1732116770524,0.3608,94702.0,94701.0,0.052737]
[1732116771012,0.3608,94702.0,94700.0,0.04259111]
[1732116771320,0.3608,94701.0,94694.0,0.13154]
[1732116771522,0.3608,94701.0,94695.0,0.05274]
[1732116771726,0.3608,94701.0,94694.0,0.0788]
[1732116772019,0.7216,94701.0,94694.0,0.0788]
[1732116772219,0.7216,94701.0,94694.0,0.13154]
[1732116772626,0.7216,94701.0,94694.0,0.0788]
[1732116772923,0.7216,94701.0,94695.0,0.052739]
[1732116773126,0.7216,94701.0,94694.0,0.12044202]
[1732116773323,0.7216,94701.0,94700.0,0.052737]
[1732116774235,0.00010328,94709.0,94708.0,0.052733]
[1732116774412,0.00010328,94709.0,94708.0,0.17252411]
[1732116775821,0.3608,94719.0,94708.0,0.11979111]
[1732116776026,0.3608,94719.0,94718.0,0.17251811]
[1732116776423,0.3608,94730.0,94729.0,0.052721]
[1732116776618,0.7216,94730.0,94729.0,0.052721]
[1732116777820,0.7216,94730.0,94719.0,0.04]
[1732116778128,0.3608,94722.0,94721.0,0.052725]
[1732116778331,0.3608,94722.0,94719.0,0.04]
[1732116778528,0.3608,94722.0,94715.0,0.052728]
[1732116778724,0.3608,94716.0,94708.0,0.02109157]
[1732116778922,0.3608,94709.0,94708.0,0.02109157]
[1732116779122,1.8608,94709.0,94708.0,0.02109157]
[1732116779324,0.3608,94715.0,94706.0,0.052734]
[1732116779529,0.3608,94715.0,94705.0,0.11979111]
[1732116779530,0.3608,94707.0,94705.0,0.11979111]
[1732116779823,0.00844,94714.0,94713.0,0.05273]
[1732116780222,0.00844,94714.0,94708.0,0.052732]
[1732116780420,0.00844,94714.0,94713.0,0.17252111]
[1732116781731,0.36924,94714.0,94713.0,0.09537119]
[1732116782732,0.01688,94714.0,94713.0,0.09537119]
[1732116782924,0.01688,94714.0,94713.0,0.2151623]
[1732116783618,0.01688,94714.0,94713.0,0.1624323]
[1732116783822,0.01688,94714.0,94713.0,0.2151623]
[1732116785126,0.40288867,94741.0,94713.0,0.5319223]
[1732116785325,0.40288867,94741.0,94720.0,0.11979111]
[1732116785326,0.3608,94733.0,94720.0,0.11979111]
[1732116785530,0.3608,94722.0,94721.0,0.0406]
[1732116785734,0.3608,94722.0,94721.0,0.093325]
[1732116786225,0.3608,94733.0,94728.0,0.052721]
[1732116786426,0.3608,94733.0,94721.0,0.0406]
[1732116786427,0.7216,94733.0,94724.0,0.052724]
[1732116786744,0.3608,94725.0,94716.0,0.052728]
[1732116787037,0.3608,94725.0,94724.0,0.052724]
[1732116787420,0.3608,94725.0,94713.0,0.1624323]
[1732116788033,0.3608,94725.0,94724.0,0.052724]
[1732116788428,0.3608,94733.0,94720.0,0.11979111]
[1732116788628,0.3608,94733.0,94728.0,0.052721]
[1732116788829,0.3608,94733.0,94720.0,0.11979111]
[1732116789026,0.3608,94722.0,94720.0,0.16175329]
[1732116789231,0.3608,94733.0,94725.0,0.052723]
[1732116789429,0.7216,94733.0,94720.0,0.16175329]
[1732116789632,0.3608,94733.0,94721.0,0.052725]
[1732116789833,0.3608,94723.0,94722.0,0.052725]
[1732116790033,0.3608,94733.0,94732.0,0.052719]
[1732116790424,0.3608,94733.0,94732.0,0.00168565]